[Event "44th Chess Olympiad Women 2022"]
[Site "Chennai"]
[Date "2022.07.30"]
[Round "2.26"]
[White "Urh, Zala"]
[Black "Ortiz Verdezoto, Anahi"]
[Result "0-1"]
[ECO "E44"]
[WhiteElo "2321"]
[BlackElo "2046"]
[Annotator "TA"]
[PlyCount "98"]
[EventDate "2022.07.29"]
[EventType "team-tourn"]
[EventCountry "IND"]
[SourceTitle "playchess.com"]
[Source "ChessBase"]
[SourceQuality "1"]
[WhiteTeam "Slovenia"]
[BlackTeam "Ecuador"]
[WhiteTeamCountry "SLO"]
[BlackTeamCountry "ECU"]
[TimeControl "40/5400+30:1800+30"]

{[%evp 14,98,26,22,25,18,32,16,49,47,55,45,56,52,53,57,59,45,58,65,51,0,21,0,18,0,0,-37,-41,-34,-36,-35,-18,-27,-14,-25,-24,-17,0,-21,12,0,0,0,0,0,0,0,0,-27,-28,-183,-200,-160,-155,-150,-142,-267,-280,-275,-269,-262,-265,-277,-273,-291,-264,-272,-263,-366,-397,-686,-422,-1071,-1074,-1423,-1394,-1232,-769,-800,-787,-1510,-888,-920,-912,-29985,-29986]} 1. d4 {[%emt 0:00:16]} Nf6 {[%emt 0:00:28]} 2. c4 {[%emt 0:00:07]} e6 {[%emt 0:00:05]} 3. Nc3 {[%emt 0:00:04]} Bb4 {[%emt 0:00:54]} 4. e3 {[%emt 0:00:14]} b6 {[%emt 0:01:52]} 5. Nge2 {[%emt 0:00:07]} O-O {[%emt 0:04:47]} 6. a3 {[%emt 0:00:24]} Bxc3+ {[%emt 0:00:11]} 7. Nxc3 {[%emt 0:00:06]} d5 {[%emt 0:00:06] was the old line (7...Bb7).} 8. cxd5 {[%emt 0:01:40]} exd5 {[%emt 0:02:43] E44: Nimzo-Indian: Rubinstein: 4...b6 5 Ne2.} 9. Bd3 {[%emt 0:00:21]} Re8 {[%emt 0:02:34]} 10. O-O {[%emt 0:03:21]} Nbd7 {[%emt 0:03:03] The position is equal.} 11. b4 {[%emt 0:06:03]} Bb7 {[%emt 0:03:46]} 12. Bb2 {[%emt 0:02:35] [#]} Ne4 $146 {[%emt 0:14:03]} ({Predecessor:} 12... c5 13. dxc5 bxc5 14. Nb5 Re6 15. Rc1 a6 16. Nc3 d4 17. exd4 cxd4 18. Ne2 Ne5 19. Nxd4 Nxd3 20. Qxd3 {1-0 (68) Hernandez Carmenates,H (2510)-Mujumdar,S (2089) Philadelphia 2017}) 13. Rc1 {[%emt 0:06:00]} Ndf6 {[%emt 0:01:11]} 14. Re1 {[%emt 0:02:48]} a6 {[%emt 0:01:46]} 15. f3 {[%emt 0:03:01]} Nd6 {[%emt 0:00:05]} 16. Rc2 {[%emt 0:06:15]} Qd7 {[%emt 0:02:10]} 17. g4 {[%emt 0:08:00]} ({White should try} 17. Rce2 $14) 17... Re7 {[%emt 0:03:57]} 18. Rce2 {[%emt 0:03:07]} b5 {[%emt 0:12:11]} 19. Bb1 {[%emt 0:02:09]} a5 {[%emt 0:03:03]} 20. Qd3 {[%emt 0:02:02]} g6 {[%emt 0:00:19]} 21. Bc1 {[%emt 0:05:07]} axb4 {[%emt 0:03:43]} 22. axb4 {[%emt 0:00:06]} Rae8 {[%emt 0:00:38]} 23. Nd1 {[%emt 0:02:53][%cal Bc3d1,Bd1f2,Bf2d3,Bd3f4][%mdl 32]} Nc4 {[%emt 0:03:25]} 24. Nf2 {[%emt 0:00:54]} Qd6 {[%emt 0:00:06]} 25. Qc3 {[%emt 0:09:16]} Bc6 {[%emt 0:10:25]} 26. Kg2 {[%emt 0:07:17]} Re6 {[%emt 0:00:55]} 27. Nd3 {[%emt 0:01:32]} Nd7 {[%emt 0:02:52][%cal Bf6d7,Bd7f8,Bf8e6,Be6g5,Bg5e4][%mdl 32]} 28. Nf4 {[%emt 0:03:10]} R6e7 {[%emt 0:00:01]} 29. h4 {[%emt 0:00:55]} Nf8 {[%emt 0:07:45]} 30. h5 {[%emt 0:02:44]} Ne6 {[%emt 0:00:12]} 31. Nh3 {[%emt 0:00:50]} gxh5 {[%emt 0:02:48]} 32. Qd3 $2 {[%emt 0:16:11] Now White is beyond hope.} (32. gxh5 $11 {and White is okay.} Kh8 33. Rg1) 32... f6 $19 {[%emt 0:00:26]} 33. Nf2 {[%emt 0:00:23]} Rg7 {[%emt 0:01:13] Dancing on a razor blade.} (33... Qxb4 34. Rh1 $15) 34. Rh1 {[%emt 0:00:42]} Ree7 {[%emt 0:02:27] 0x0.0024d8172154dp-1022s more active pieces.} ({Weaker is} 34... Qxb4 35. Rxh5 Qe7 36. Ra2 $15) 35. Kf1 {[%emt 0:05:18]} (35. Rxh5 $17 Be8 36. Rh4) 35... Ng5 {[%emt 0:02:31] Pair of Knights!} ({And not} 35... Qxb4 36. Rxh5 Ng5 37. e4 $17) 36. f4 {[%emt 0:00:56] [#]} Ne4 {[%emt 0:00:06]} 37. Nxe4 {[%emt 0:00:46]} dxe4 {[%emt 0:00:01]} 38. Qc2 {[%emt 0:00:11]} hxg4 {[%emt 0:00:19]} ({Not} 38... Qxb4 $2 39. gxh5 Kh8 40. Ba2 $19) 39. Rg2 {[%emt 0:01:17]} Qxb4 {[%emt 0:00:15]} 40. Ba2 {[%emt 0:00:04]} Bd5 {[%emt 0:00:58]} 41. Rh5 {[%emt 0:01:53]} c6 {[%emt 0:08:55] [#] And now ...Ra7 would win.} 42. Qe2 $2 {[%emt 0:01:18]} (42. Bd2 Qd6 43. Kg1) 42... Qc3 {[%emt 0:00:53]} 43. Bd2 {[%emt 0:01:13]} (43. Qe1 $142 Qxe1+ 44. Kxe1) 43... Qa3 {[%emt 0:03:58]} 44. Bb1 {[%emt 0:01:42]} Qb3 {[%emt 0:01:15]} 45. Qe1 {[%emt 0:00:28]} Na3 {[%emt 0:00:05]} 46. Bb4 {[%emt 0:00:46]} Ra7 {[%emt 0:02:00][%cal Be7a7,Ba7a4,Ba4a3,Ba3a1][%mdl 32]} 47. Bc5 {[%emt 0:01:34]} Ra4 {[%emt 0:00:12] Strongly threatening ...Nc4.} 48. Bxa3 {[%emt 0:00:11]} Rxa3 {[%emt 0:00:09]} 49. Rf5 {[%emt 0:02:45]} Ra1 {[%emt 0:00:39] Weighted Error Value: White=0.62/Black=0.23 (precise)} 0-1

[Event "44th Chess Olympiad Women 2022"]
[Site "Chennai"]
[Date "2022.07.30"]
[Round "2.26"]
[White "Rozman, Monika"]
[Black "Miranda Vargas, Analia Karen"]
[Result "1-0"]
[ECO "C54"]
[WhiteElo "2104"]
[BlackElo "1723"]
[Annotator "TA"]
[PlyCount "103"]
[EventDate "2022.07.29"]
[EventType "team-tourn"]
[EventCountry "IND"]
[SourceTitle "playchess.com"]
[Source "ChessBase"]
[SourceQuality "1"]
[WhiteTeam "Slovenia"]
[BlackTeam "Ecuador"]
[WhiteTeamCountry "SLO"]
[BlackTeamCountry "ECU"]
[TimeControl "40/5400+30:1800+30"]

{[%evp 14,103,22,11,15,15,36,21,23,-1,2,6,21,14,13,22,12,2,48,36,31,28,82,82,128,43,43,22,27,24,24,24,24,21,18,25,20,20,59,60,120,111,131,127,143,138,139,133,134,105,109,108,110,117,110,105,104,91,149,149,149,149,149,149,149,149,157,114,115,115,149,149,149,8,116,116,116,152,5501,2587,29961,29962,29958,29965,29964,29956,29949,29957,29974,29974,29971,29972]} 1. e4 {[%emt 0:00:03]} e5 {[%emt 0:00:08]} 2. Nf3 {[%emt 0:00:04]} Nc6 {[%emt 0:00:05]} 3. Bc4 {[%emt 0:00:05]} Bc5 {[%emt 0:00:08]} 4. c3 {[%emt 0:00:07]} Nf6 {[%emt 0:00:17]} 5. d3 {[%emt 0:00:05]} d6 {[%emt 0:00:44]} 6. O-O {[%emt 0:00:05]} h6 {[%emt 0:02:54]} 7. Nbd2 {[%emt 0:00:19]} O-O {[%emt 0:00:23]} 8. h3 {[%emt 0:02:11]} Bb6 {[%emt 0:03:20] C54: Giuoco Piano: 4 c3 Nf6, main lines with 5 d4 and 5 d3.} 9. Re1 {[%emt 0:00:42]} Re8 {[%emt 0:07:16]} 10. Nf1 {[%emt 0:05:48]} Ne7 {[%emt 0:03:15] The position is equal.} 11. Nh4 {[%emt 0:08:38]} c6 {[%emt 0:05:05]} 12. Qf3 {[%emt 0:03:01][%cal Oc1h6] With the idea Bxh6!} d5 {[%emt 0:16:42]} 13. Bb3 {[%emt 0:00:46][%cal Oc1h6] next Bxh6! is good for White.} Qd6 {[%emt 0:06:09] [#]} 14. Ng3 $146 {[%emt 0:03:26]} ({Predecessor:} 14. g4 Ng6 15. Nf5 Bxf5 16. gxf5 Nf4 17. Bxf4 exf4 18. exd5 cxd5 19. d4 Ne4 20. Bc2 {½-½ (42) Herrera,M (2090)-Pulido,D (2011) Puerto Boyaca 2012}) 14... a5 {[%emt 0:11:40]} 15. a4 {[%emt 0:03:24]} Kh7 {[%emt 0:10:22]} (15... g5 $11 {feels stronger.} 16. Nhf5 Nxf5 17. Nxf5 Bxf5 18. Qxf5 Qe6) 16. Be3 {[%emt 0:02:00]} Bxe3 {[%emt 0:00:35]} 17. Qxe3 {[%emt 0:02:11]} Be6 {[%emt 0:07:46]} (17... Ng6 $11 {remains equal.} 18. Nxg6 fxg6) 18. d4 $1 $16 {[%emt 0:05:08]} exd4 {[%emt 0:01:51] [#]} (18... Ng6 $142) 19. Qxd4 {[%emt 0:01:54]} (19. Qd3 $1 $16 dxe4 20. Nxe4 Nxe4 21. Rxe4) 19... Qf4 $14 {[%emt 0:01:27] [#]} 20. Bc2 $1 {[%emt 0:08:12] Threatens to win with exd5+.} Kg8 {[%emt 0:00:41]} (20... Kh8 21. e5) 21. e5 {[%emt 0:04:56]} Qxd4 {[%emt 0:01:12]} 22. cxd4 {[%emt 0:00:02]} Ne4 {[%emt 0:02:22]} 23. Bxe4 {[%emt 0:01:56]} dxe4 {[%emt 0:00:06]} 24. Nxe4 {[%emt 0:00:17]} Red8 {[%emt 0:01:05]} 25. Nd6 {[%emt 0:05:01]} g5 {[%emt 0:02:46]} 26. Nf3 {[%emt 0:00:42][%cal Bh4f3,Bf3d2,Bd2e4,Be4d6][%mdl 32]} ({Don't blunder} 26. Nxb7 $2 Rdb8 27. Nc5 gxh4 $19) 26... Rd7 {[%emt 0:00:18]} (26... Nf5 $14) 27. Nd2 $16 {[%emt 0:03:31]} Nf5 {[%emt 0:05:17]} 28. N2e4 {[%emt 0:01:14] Nf6+ is the strong threat. Pair of Knights!} Kg7 {[%emt 0:00:00]} 29. Nxf5+ {[%emt 0:02:32]} Bxf5 {[%emt 0:00:00]} 30. Nd6 {[%emt 0:00:09]} Be6 {[%emt 0:00:00]} 31. Rec1 {[%emt 0:02:01]} Ra6 {[%emt 0:00:13]} 32. Rc5 {[%emt 0:11:02][%cal Of2f4]} Rb6 {[%emt 0:01:15]} 33. Rxa5 {[%emt 0:00:16]} Rxb2 {[%emt 0:03:19]} 34. Ra7 {[%emt 0:00:27]} Rb4 {[%emt 0:01:16] [#]} 35. Rd1 $1 {[%emt 0:05:13]} Bb3 {[%emt 0:02:12]} (35... b6 $142 36. Ra8 Kg6) 36. Rb1 {[%emt 0:01:09] Black must now prevent a5. White is more active.} Rxa4 {[%emt 0:00:10]} 37. Rxa4 {[%emt 0:00:18]} ({Don't do} 37. Rxb7 $6 Rxb7 38. Nxb7 Bd5 $14) 37... Bxa4 {[%emt 0:00:02]} 38. Rxb7 {[%emt 0:00:20]} Rxb7 {[%emt 0:00:26]} 39. Nxb7 {[%emt 0:00:03][%mdl 4096] Endgame KB-KN} f6 {[%emt 0:03:57]} 40. exf6+ {[%emt 0:04:02]} Kxf6 {[%emt 0:00:02]} 41. f3 {[%emt 0:30:27]} Bb5 {[%emt 0:30:53]} 42. Kf2 {[%emt 0:01:10]} Ke6 {[%emt 0:01:15]} 43. Ke3 {[%emt 0:04:01]} (43. g3 $16) 43... Kd5 {[%emt 0:00:00]} (43... Bf1 $1 $11) 44. Nd8 {[%emt 0:00:00]} Bf1 {[%emt 0:00:00]} 45. g4 {[%emt 0:00:00] aiming for Nf7.} c5 $2 {[%emt 0:00:00] A mistake that costs the game.} (45... Bxh3 $16 46. Nf7 Ke6 47. Nxh6 Bf1) 46. dxc5 $18 {[%emt 0:00:00] White wants to mate with c6.} Kxc5 {[%emt 0:00:00]} 47. Nf7 {[%emt 0:00:00] White mates.} Kd5 {[%emt 0:00:00]} 48. Nxh6 {[%emt 0:00:00]} Ke5 {[%emt 0:00:00]} 49. Nf5 {[%emt 0:00:00]} Bb5 {[%emt 0:00:00]} 50. h4 {[%emt 0:00:00]} Kf6 {[%emt 0:00:43]} 51. Nd6 {[%emt 0:00:00]} Bc6 {[%emt 0:00:22]} 52. Ne4+ {[%emt 0:00:00] Weighted Error Value: White=0.13 (very precise) /Black=0.25 (precise)} 1-0

[Event "44th Chess Olympiad Women 2022"]
[Site "Chennai"]
[Date "2022.07.30"]
[Round "2.26"]
[White "Heredia Serrano, Carla"]
[Black "Unuk, Laura"]
[Result "1/2-1/2"]
[ECO "B11"]
[WhiteElo "2090"]
[BlackElo "2340"]
[Annotator "TA"]
[PlyCount "100"]
[EventDate "2022.07.29"]
[EventType "team-tourn"]
[EventCountry "IND"]
[SourceTitle "playchess.com"]
[Source "ChessBase"]
[SourceQuality "1"]
[WhiteTeam "Ecuador"]
[BlackTeam "Slovenia"]
[WhiteTeamCountry "ECU"]
[BlackTeamCountry "SLO"]
[TimeControl "40/5400+30:1800+30"]

{[%evp 14,100,37,0,52,12,23,0,21,10,37,34,29,33,26,15,35,17,37,0,8,8,8,8,3,4,8,0,0,-4,16,-2,17,10,37,41,40,16,52,45,56,7,161,177,164,119,160,87,106,91,101,97,101,118,215,224,215,206,491,480,445,461,461,432,406,0,361,193,186,18,19,20,48,8,66,0,66,17,56,0,0,0,0,0,0,0,0,0,0]} 1. e4 {[%emt 0:00:20]} c6 {[%emt 0:00:10]} 2. Nc3 {[%emt 0:00:51]} d5 {[%emt 0:00:32]} 3. Nf3 {[%emt 0:00:09]} Bg4 {[%emt 0:00:40]} 4. h3 {[%emt 0:00:13]} Bxf3 {[%emt 0:00:06]} 5. Qxf3 {[%emt 0:00:06]} e6 {[%emt 0:00:05]} 6. g3 {[%emt 0:00:10]} Nf6 {[%emt 0:04:38]} 7. Bg2 {[%emt 0:00:11]} Nbd7 {[%emt 0:01:15]} 8. O-O {[%emt 0:00:27]} Bd6 {[%emt 0:05:14] 8...Bc5 gains popularity. B11: Caro-Kann: Two Knights Variation.} (8... Ne5 $11 9. Qf4 Ng6) 9. d3 {[%emt 0:06:44]} O-O {[%emt 0:07:03]} 10. Qe2 {[%emt 0:02:28]} (10. d4 $5 {[%cal Re4e5]}) 10... dxe4 {[%emt 0:23:15]} 11. dxe4 {[%emt 0:00:11]} e5 {[%emt 0:00:43]} 12. Nd1 {[%emt 0:02:12][%cal Bc3d1,Bd1e3,Be3c4][%mdl 32] [#]} Qc7 $146 {[%emt 0:00:41]} ({Predecessor:} 12... Bc5 13. Ne3 Re8 14. Bd2 Qc7 15. b4 Bf8 16. a4 Rad8 17. a5 g6 18. Nc4 Bg7 {1-0 (77) Vorobiov,E (2581)-Kantorik,M (2305) Teplice 2012}) 13. Ne3 {[%emt 0:01:29]} Rfd8 {[%emt 0:04:46]} 14. a4 {[%emt 0:15:39]} (14. Nf5 {seems wilder.} Bc5 15. h4 a5 16. Rd1) 14... Bf8 {[%emt 0:03:43]} 15. Nc4 {[%emt 0:11:54]} Nc5 {[%emt 0:09:24]} 16. a5 {[%emt 0:14:18]} b5 {[%emt 0:05:55]} 17. axb6 {[%emt 0:19:24]} axb6 {[%emt 0:00:15]} 18. Bg5 {[%emt 0:05:35]} Be7 {[%emt 0:01:01]} 19. h4 {[%emt 0:09:46]} b5 {[%emt 0:05:19] [#] Strongly threatening ...Rxa1.} 20. Bxf6 {[%emt 0:02:55]} Bxf6 {[%emt 0:00:10]} 21. Ne3 {[%emt 0:00:21]} Ne6 {[%emt 0:12:04]} 22. Qg4 {[%emt 0:02:28]} Kh8 {[%emt 0:01:03]} 23. Bh3 {[%emt 0:00:27]} Ra4 {[%emt 0:08:35]} 24. Rxa4 {[%emt 0:01:45]} bxa4 {[%emt 0:00:05]} 25. Rd1 {[%emt 0:01:55]} Kg8 {[%emt 0:02:11]} 26. Rxd8+ {[%emt 0:00:44]} Qxd8 {[%emt 0:00:16]} 27. Qd1 {[%emt 0:00:20]} (27. Qf3 $14) 27... Qe7 $2 {[%emt 0:03:28]} (27... Qxd1+ $11 28. Nxd1 Nc5) 28. Bxe6 $18 {[%emt 0:00:09]} Qxe6 {[%emt 0:00:20][%mdl 4096] Endgame KQB-KQN} 29. Qd3 {[%emt 0:00:54]} Qa2 {[%emt 0:01:24]} 30. Nc4 {[%emt 0:00:06]} (30. Qa6 $142 {White threatens Qc8+ and mate.} Be7 31. Qxc6) 30... h5 $16 {[%emt 0:00:26]} 31. Kg2 {[%emt 0:00:43] White is more active.} Be7 {[%emt 0:00:22]} 32. Qc3 {[%emt 0:00:35]} (32. Nxe5 Qxb2 33. Nxc6 Bf8 $11) 32... f6 {[%emt 0:00:33]} 33. Ne3 {[%emt 0:00:20]} Bf8 {[%emt 0:00:44]} (33... c5 $16 34. Qa5 Qxb2) 34. Qxc6 $18 {[%emt 0:00:19] Threatens to win with Qb5.} Qxb2 {[%emt 0:00:16]} 35. Qxa4 {[%emt 0:00:13]} Kh7 $2 {[%emt 0:00:45]} (35... Qb7 {keeps fighting.} 36. Nd5 Qc8) 36. Qe8 {[%emt 0:00:14][%csl LRf8,LRh5]} Bc5 {[%emt 0:00:31]} 37. Qxh5+ {[%emt 0:00:05]} Kg8 {[%emt 0:00:01]} 38. Qe8+ {[%emt 0:00:09]} Kh7 {[%emt 0:00:01]} 39. Qh5+ {[%emt 0:01:41]} Kg8 {[%emt 0:00:01]} 40. Qe2 {[%emt 0:01:17]} ({Don't take} 40. Qe8+ Kh7 41. Qh5+ $18) (40. Ng4 $142 Qxc2 41. Qg6 (41. Qe8+ Kh7 $16)) 40... Bxe3 {[%emt 0:01:47]} 41. fxe3 {[%emt 0:06:04] KQ-KQ} (41. Qxe3 $18 {And now Qb3+ would win.} Qxc2 42. g4) 41... Qc1 $11 {[%emt 0:01:12]} 42. Qd3 {[%emt 0:00:56]} Kh7 {[%emt 0:00:31]} 43. c4 {[%emt 0:07:09] Black must now prevent Kf3.} Kh6 {[%emt 0:00:33]} 44. Qe2 {[%emt 0:04:39]} (44. Kf2 $14) 44... Qc3 {[%emt 0:13:21]} (44... Qb1 $11) 45. Kh3 {[%emt 0:03:10]} (45. Kf2 $14 {deserves consideration.}) 45... Qc1 {[%emt 0:02:20]} 46. Kg4 {[%emt 0:05:08]} ({Better is} 46. g4 $14) 46... Qb1 {[%emt 0:07:56] The position is equal.} 47. Kf5 {[%emt 0:03:24] [#] aiming for g4.} Qb7 {[%emt 0:00:11][%cal Rb7d7]} 48. Ke6 {[%emt 0:03:03] Inhibits Qd7+.} Qc6+ {[%emt 0:00:57]} 49. Ke7 {[%emt 0:00:10]} Qc7+ {[%emt 0:00:28]} 50. Ke6 {[%emt 0:00:30]} Qc6+ {[%emt 0:00:33] Blacks defense is rewarded with a draw.  Weighted Error Value: White=0.35/Black=0.27 (precise)} 1/2-1/2

[Event "44th Chess Olympiad Women 2022"]
[Site "Chennai"]
[Date "2022.07.30"]
[Round "2.26"]
[White "Penafiel Mendoza, Josselyne"]
[Black "Vidic, Teja"]
[Result "1-0"]
[ECO "D38"]
[WhiteElo "1804"]
[BlackElo "2099"]
[Annotator "TA"]
[PlyCount "143"]
[EventDate "2022.07.29"]
[EventType "team-tourn"]
[EventCountry "IND"]
[SourceTitle "playchess.com"]
[Source "ChessBase"]
[SourceQuality "1"]
[WhiteTeam "Ecuador"]
[BlackTeam "Slovenia"]
[WhiteTeamCountry "ECU"]
[BlackTeamCountry "SLO"]
[TimeControl "40/5400+30:1800+30"]

{[%evp 11,143,14,18,0,0,0,0,0,0,5,-2,0,0,-3,14,-10,-10,-4,27,-25,0,-11,0,0,24,-5,9,-10,0,-8,0,0,0,0,5,0,36,0,0,-6,-7,-60,78,70,94,93,96,75,72,85,86,97,92,58,50,46,47,0,0,0,0,0,0,0,0,0,0,0,0,0,485,466,443,433,6215,653,823,482,577,158,151,144,145,0,0,0,166,166,166,69,56,0,0,0,0,0,0,0,0,0,18,15,117,87,91,91,192,88,294,271,732,635,29974,29975,29975,29976,29976,29977,29978,29979,29979,29980,29980,29981,29981,29982,29986,29980,29982,29979,29986,29987,29987,12688]} 1. d4 {[%emt 0:00:10]} Nf6 {[%emt 0:00:09]} 2. c4 {[%emt 0:00:11]} e6 {[%emt 0:00:06]} 3. Nf3 {[%emt 0:00:36]} d5 {[%emt 0:00:08]} 4. Nc3 {[%emt 0:00:05]} Bb4 {[%emt 0:00:05]} 5. Qa4+ {[%emt 0:00:25]} Nc6 {[%emt 0:00:07]} 6. e3 {[%emt 0:02:02]} O-O {[%emt 0:00:06]} 7. Bd3 {[%emt 0:01:55] D38: Queen's Gambit Declined: Ragozin Defence (4 Nf3 Bb4).} dxc4 {[%emt 0:00:06]} 8. Bxc4 {[%emt 0:00:11]} a6 {[%emt 0:00:04]} 9. O-O {[%emt 0:01:42] The position is equal.} Bd6 {[%emt 0:00:05]} 10. a3 {[%emt 0:12:27]} e5 {[%emt 0:10:17]} 11. d5 {[%emt 0:08:59]} Ne7 {[%emt 0:00:32] Threatening ...e4.} 12. e4 {[%emt 0:00:26]} Ng6 {[%emt 0:08:14]} 13. Re1 {[%emt 0:09:39]} h6 {[%emt 0:02:36]} 14. Qc2 {[%emt 0:05:44] [#]} Nh5 $146 {[%emt 0:02:07]} ({Predecessor:} 14... Qe7 15. Nd2 Bd7 16. Nf1 Nh7 17. Ng3 Nh4 18. Nf5 Nxf5 19. exf5 Qh4 20. Bd2 e4 {1-0 (51) Moran Nuque,A (2375)-Estevez Morales,G (2340) Cuba 1993}) 15. g3 {[%emt 0:11:45]} (15. Nd2 $142) 15... Bg4 {[%emt 0:10:05]} 16. Be2 {[%emt 0:00:00][%cal Of3h4]} Qd7 {[%emt 0:05:02]} 17. Be3 {[%emt 0:00:00]} Ne7 {[%emt 0:08:55]} 18. Qa4 {[%emt 0:00:00]} b5 {[%emt 0:08:50]} 19. Qb3 {[%emt 0:00:09]} Kh8 {[%emt 0:02:45]} 20. Rad1 {[%emt 0:04:47]} f5 {[%emt 0:03:21]} 21. exf5 {[%emt 0:00:21][%cal Of3e5]} Rxf5 {[%emt 0:00:27]} 22. Nh4 {[%emt 0:02:40][%csl LRf5,LRg4]} Rf7 {[%emt 0:01:47]} 23. Qc2 {[%emt 0:02:08]} Raf8 {[%emt 0:14:52]} 24. Ne4 {[%emt 0:07:33][%cal Bc3e4,Be4c5,Bc5e6][%mdl 32]} (24. f3 $5 {[%cal Rf3g4]} Bf5 25. Nxf5 Nxf5 26. Bf2 $14) 24... Nf6 {[%emt 0:02:49]} 25. Nc5 {[%emt 0:02:53]} Qc8 {[%emt 0:00:55]} 26. Bxg4 {[%emt 0:13:51]} (26. Ne4 $11) 26... Nxg4 {[%emt 0:00:16]} (26... Qxg4 $15 {keeps the upper hand.} 27. Ne6 (27. Nxa6 g5 $17) 27... Rg8) 27. Ne6 $16 {[%emt 0:00:14]} Nxe3 {[%emt 0:07:05]} 28. fxe3 {[%emt 0:00:54]} Re8 {[%emt 0:02:44][%cal Oe5e4]} 29. Ng6+ {[%emt 0:02:36] Pair of Knights!} Kg8 {[%emt 0:01:40][%cal Oe7d5]} 30. Nxe7+ {[%emt 0:00:43]} Rexe7 {[%emt 0:00:11]} 31. Rf1 {[%emt 0:01:36]} c5 {[%emt 0:01:29]} 32. Qg6 {[%emt 0:01:13]} Qd7 {[%emt 0:01:24]} 33. Kg2 {[%emt 0:03:08]} c4 {[%emt 0:02:02]} 34. h4 {[%emt 0:01:45]} (34. Qg4 $14 {was preferrable.}) 34... a5 $11 {[%emt 0:01:04]} 35. g4 {[%emt 0:00:18]} Rxf1 $1 {[%emt 0:02:23]} 36. Rxf1 $40 {[%emt 0:00:17][%csl Ge6][%cal Rf1f8][%mdl 128] White attacks.} Rf7 {[%emt 0:00:11] Prevents Rf8+.} 37. Rf5 {[%emt 0:03:11]} b4 {[%emt 0:02:03]} 38. axb4 {[%emt 0:00:19]} axb4 {[%emt 0:00:42]} 39. g5 {[%emt 0:00:18]} hxg5 {[%emt 0:01:38]} 40. Rxg5 {[%emt 0:00:59] Threatens to win with Rh5.} (40. Qxg5 Be7 41. Qg6 Qxd5+ 42. Kg3 Bxh4+ 43. Kh2 (43. Kxh4 $2 Qh1+ 44. Kg5 Qg2+ 45. Kh5 Qh3+ 46. Kg5 Qxe3+ 47. Kh4 Qe1+ 48. Kh5 Qh1+ 49. Kg5 Qg2+ 50. Kh5 Qxg6+ 51. Kxg6 Rxf5 $19) 43... Qd2+ 44. Kh3 Qxe3+ 45. Kxh4 Qe4+ 46. Kg5 Rxf5+ 47. Qxf5 Qxf5+ 48. Kxf5 c3 49. bxc3 b3 50. Kxe5 b2 $19) 40... Be7 $2 {[%emt 0:00:33][%mdl 8192]} (40... Qb5 $1 $11 41. e4 (41. Rf5 $2 Qxd5+ 42. Kg3 e4+ 43. Rf4 Bxf4+ 44. Nxf4 Qe5 $19) 41... c3) 41. Rxe5 $18 {[%emt 0:31:14] White wants to mate with Rh5.} Qe8 {[%emt 0:07:42][%cal Of7f2] aiming for ...Rf2+!} 42. Nf4 {[%emt 0:00:00]} Qf8 {[%emt 0:02:51]} (42... Qd7 $142 43. Ne6 Qe8) 43. Rh5 {[%emt 0:00:00]} (43. Qe6 $142 g6 44. Nxg6) 43... Rf6 {[%emt 0:00:19]} 44. Qh7+ {[%emt 0:00:00]} Kf7 {[%emt 0:00:05]} 45. Qe4 $2 {[%emt 0:00:00]} (45. Ne6 $18 Qg8 46. Ng5+ Kf8 47. Qe4) 45... Qc8 $16 {[%emt 0:02:23]} 46. Ne6 {[%emt 0:00:00]} Rg6+ {[%emt 0:04:22]} 47. Kf3 {[%emt 0:00:00] 0x0.0016820035aedp-1022s more active pieces.} ({Much worse is} 47. Ng5+ $6 Bxg5 48. hxg5 c3 $11) (47. Kh1 $1 $16 {Threatening mate with Qf5+.} Rxe6 48. dxe6+ Qxe6 49. Qf4+ Bf6 50. Rc5) 47... c3 $11 {[%emt 0:02:04]} 48. Rf5+ {[%emt 0:00:00]} Bf6 $2 {[%emt 0:02:39]} (48... Kg8 $11 {and Black stays safe.} 49. bxc3 bxc3) 49. bxc3 $1 $18 {[%emt 0:00:00]} ({But not} 49. Qxb4 $2 c2 50. Qe1 c1=Q $19) 49... bxc3 {[%emt 0:00:21] [#] ...c2 is the strong threat.} 50. Nd4 {[%emt 0:00:00]} ({White should play} 50. Nf4 $1 $18 {And now d6 would win.} Rh6 51. d6) 50... Kg8 $14 {[%emt 0:01:25] Strongly threatening ...Bxd4.} 51. Nc6 {[%emt 0:01:21]} (51. Qe6+ $14 Qxe6 52. dxe6) 51... Bxh4 $11 {[%emt 0:00:49] Hoping for ...Rg3+.} 52. Rf4 {[%emt 0:02:32]} Rg3+ {[%emt 0:04:50]} 53. Kf2 {[%emt 0:01:02]} Rg4+ {[%emt 0:00:04]} 54. Kf3 {[%emt 0:00:07]} Rg3+ {[%emt 0:00:04]} 55. Ke2 {[%emt 0:00:27]} Qa6+ {[%emt 0:03:08]} 56. Qc4 {[%emt 0:00:03] Dancing on a razor blade.} Rg2+ {[%emt 0:04:11]} (56... Qxc4+ $1 $11 {keeps the balance.} 57. Rxc4 Bf6) 57. Kd3 $1 $16 {[%emt 0:01:20]} Qxc4+ {[%emt 0:00:08]} (57... Rd2+ $2 58. Kxc3 Qxc4+ 59. Kxc4 $18) 58. Rxc4 {[%emt 0:00:28][%mdl 4096] Endgame KRB-KRN} Be1 {[%emt 0:00:10]} (58... Bf6 $16 {was necessary.}) 59. e4 {[%emt 0:01:00]} (59. Nd4 $18 {is more deadly.}) 59... g5 $2 {[%emt 0:01:39] A mistake that costs the game.} (59... Rd2+ $16 60. Ke3 Kf8) 60. e5 $18 {[%emt 0:00:54] Black must now prevent d6.} g4 $2 {[%emt 0:00:36]} (60... Rd2+ 61. Ke3 Kg7) 61. e6 {[%emt 0:01:15]} Kf8 {[%emt 0:00:41]} 62. Rf4+ {[%emt 0:00:06] White mates.} Ke8 {[%emt 0:00:06]} 63. e7 {[%emt 0:00:21]} Rd2+ {[%emt 0:00:35]} 64. Kc4 {[%emt 0:00:22]} Re2 {[%emt 0:00:21]} 65. Rf8+ {[%emt 0:00:16]} Kd7 {[%emt 0:00:07]} 66. Rd8+ {[%emt 0:00:01]} Kc7 {[%emt 0:00:11]} 67. e8=Q {[%emt 0:00:27]} Rxe8 {[%emt 0:00:11]} 68. Rxe8 {[%emt 0:00:01]} Bd2 {[%emt 0:00:06]} 69. Nd4 {[%emt 0:00:40]} g3 {[%emt 0:00:27]} 70. Rg8 {[%emt 0:00:06]} Be1 {[%emt 0:00:11]} 71. Nb5+ {[%emt 0:00:05]} Kd7 {[%emt 0:00:14]} 72. Nxc3 {[%emt 0:00:01] Weighted Error Value: White=0.38/Black=0.38} (72. Rg7+ $142 Kd8 73. Nxc3 Ke8 74. d6 Bd2 75. Ne4 Kf8 {[#]} 76. Nxd2 $1 Kxg7 77. d7) 1-0